bitfinex-derivatives/quotes_ETHF0:USTF0_20250316
["timestamp","ask_amount","ask_price","bid_price","bid_amount"]
[1742126509619,4.2727,1878.1,1877.5,3.2078]
[1742126509817,1.06494,1878.0,1877.7,1.06506]
[1742126510113,3.2078,1878.1,1877.7,0.00798956]
[1742126510317,1.6085,1877.9,1877.7,0.00798956]
[1742126510519,1.6206,1877.8,1877.7,0.00798956]
[1742126510715,1.6206,1877.8,1877.7,1.07309956]
[1742126511016,1.6206,1877.8,1877.7,4.28089956]
[1742126511217,1.6206,1877.8,1877.7,8.35189956]
[1742126512614,1.3312,1878.0,1877.7,9.94953956]
[1742126512817,1.3312,1878.0,1877.9,4.27279]
[1742126514122,2.9009,1878.0,1877.9,4.27279]
[1742126514718,1.5697,1878.0,1877.9,4.27279]
[1742126515615,1.5872,1878.1,1878.0,1.06494]
[1742126515820,1.5872,1878.1,1878.0,6.76494]
[1742126516325,1.5872,1878.1,1878.0,5.13494]
[1742126516613,3.2448,1878.1,1878.0,5.13494]
[1742126521325,3.2448,1878.1,1878.0,1.06494]
[1742126523523,1.331,1878.2,1878.1,1.06488]
[1742126523729,1.331,1878.2,1878.1,4.27268]
[1742126524024,2.66828,1878.3,1878.1,4.27268]
[1742126524224,1.6035,1878.3,1878.1,4.27268]
[1742126524424,9.97323,1878.3,1877.8,1.06503]
[1742126524629,5.87014,1878.1,1877.7,3.21578956]
[1742126524925,1.06505,1877.8,1877.7,4.28088956]
[1742126525122,4.6947,1878.0,1877.7,3.21578956]
[1742126525314,1.06505,1877.8,1877.7,4.28087956]
[1742126525713,1.06501,1877.9,1877.8,1.06501]
[1742126525928,1.5642,1877.9,1877.8,1.06501]
[1742126526629,2.62919,1877.9,1877.8,1.06501]
[1742126526828,1.5642,1877.9,1877.7,3.21578956]
[1742126527123,2.62921,1877.9,1877.8,1.06505]
[1742126527628,1.5642,1877.9,1877.8,1.06505]
[1742126527824,2.62919,1877.9,1877.8,1.06505]
[1742126528021,1.5642,1877.9,1877.8,1.06505]
[1742126529924,1.5642,1877.9,1877.7,3.21578956]
[1742126530132,1.06505,1877.8,1877.7,1.07307956]
[1742126530429,2.62923,1877.9,1877.8,1.06505]
[1742126531623,1.5642,1877.9,1877.8,1.06505]
[1742126531819,1.5642,1877.9,1877.7,0.00798956]
[1742126532029,1.06505,1877.8,1877.7,1.07305956]
[1742126532219,1.5642,1877.9,1877.7,0.00798956]
[1742126532418,4.27285,1877.8,1877.7,0.00798956]
[1742126532623,5.87044,1877.8,1877.3,7.2748]
[1742126532817,1.06519,1877.6,1877.3,4.7079]
[1742126533020,3.0714,1877.5,1877.4,1.06528]
[1742126535731,4.5284,1877.5,1877.4,1.06528]
[1742126535930,5.59362,1877.5,1877.3,5.76257956]
[1742126536134,1.06528,1877.4,1877.3,3.21578956]
[1742126536329,2.50558,1877.4,1877.3,3.21578956]
[1742126536523,7.1481,1877.4,1877.0,3.2078]
[1742126536729,1.06545,1877.1,1877.0,3.2078]
[1742126537028,4.27329,1877.1,1876.8,1.4815]
[1742126537220,4.4806,1877.0,1876.9,1.06552]
[1742126537632,5.5461,1877.0,1876.9,1.06552]
[1742126537831,1.06556,1876.9,1876.8,2.55505956]
[1742126538026,2.49786,1876.9,1876.8,1.07355956]
[1742126538229,1.4323,1876.9,1876.8,1.07355956]
[1742126538432,2.49786,1876.9,1876.8,1.07355956]
[1742126538631,2.49786,1876.9,1876.8,0.00798956]
[1742126538833,1.4323,1876.9,1876.8,1.07360956]
[1742126539336,1.4323,1876.9,1876.8,0.00798956]
[1742126539537,2.49786,1876.9,1876.8,0.00798956]
[1742126540138,2.49786,1876.9,1876.8,1.07360956]
[1742126540333,1.4323,1876.9,1876.8,0.00798956]
[1742126540637,2.49786,1876.9,1876.8,1.07360956]
[1742126541030,1.4323,1876.9,1876.8,1.07360956]
[1742126541628,1.5417,1877.0,1876.9,1.06556]
[1742126541930,1.5586,1877.2,1877.1,1.06545]
[1742126542131,3.2078,1877.3,1877.2,1.06539]
[1742126542437,3.2078,1877.3,1877.2,1.5637]
[1742126542634,0.00791934,1877.6,1877.3,2.66327]
[1742126542835,0.00791934,1877.6,1877.5,1.06522]
[1742126544234,3.21571934,1877.6,1877.5,1.06522]
[1742126544741,0.00791934,1877.6,1877.5,1.06522]
[1742126544937,1.53111934,1877.6,1877.5,1.06522]
[1742126545734,2.59627934,1877.6,1877.4,1.06524]
[1742126545936,1.06529,1877.4,1877.2,1.06535]
[1742126546243,2.63083,1877.3,1877.2,1.5386]
[1742126546442,1.06539,1877.2,1877.1,5.13141]
[1742126546739,2.63089,1877.2,1877.0,5.81186]
[1742126547039,4.2733,1877.1,1877.0,1.0655]
[1742126547240,1.5655,1877.1,1877.0,1.0655]
[1742126547632,4.7733,1877.1,1877.0,1.0655]
[1742126548339,3.2078,1877.1,1877.0,1.0655]
[1742126548640,1.5655,1877.3,1877.2,1.06539]
[1742126549244,4.7733,1877.3,1877.2,1.06539]
[1742126549443,1.5655,1877.3,1877.2,1.06539]
[1742126549742,4.7733,1877.3,1877.2,2.53099]
[1742126549943,1.5655,1877.3,1877.2,2.53099]
[1742126550145,3.6274,1877.4,1877.3,1.06533]
[1742126550348,5.0481,1877.4,1877.3,1.06533]
[1742126550639,6.11342,1877.4,1877.2,2.53097]
[1742126550837,3.2078,1877.3,1876.9,1.06555]
[1742126551142,4.2733,1877.0,1876.9,1.06555]
[1742126551335,3.2078,1877.0,1876.9,1.06555]
[1742126551534,4.2733,1877.0,1876.9,1.06555]
[1742126551734,4.27335,1877.0,1876.8,2.53915956]
[1742126552045,2.48626,1876.9,1876.8,0.00798956]
[1742126552241,5.60156,1876.9,1876.8,1.07360956]
[1742126553844,4.536,1876.9,1876.8,1.07360956]
[1742126554740,4.536,1876.9,1876.8,0.00798956]
[1742126554939,5.60156,1876.9,1876.8,0.00798956]
[1742126555444,4.536,1876.9,1876.8,1.07360956]
[1742126555635,5.60156,1876.9,1876.8,1.07360956]
[1742126555841,4.536,1876.9,1876.8,1.07360956]
[1742126556238,5.60156,1876.9,1876.8,1.07360956]
[1742126556441,5.60156,1876.9,1876.8,0.00798956]
[1742126557138,4.536,1876.9,1876.8,0.00798956]
[1742126557447,5.60156,1876.9,1876.8,0.00798956]
[1742126560049,4.536,1876.9,1876.5,1.06574]
[1742126560251,4.27353,1876.6,1876.5,2.62524]
[1742126560846,3.2078,1876.6,1876.5,1.06579]
[1742126561148,1.06579,1876.5,1876.4,1.07378956]
[1742126561346,2.56299,1876.5,1876.4,1.07378956]
[1742126561550,2.56299,1876.5,1876.4,0.00798956]
[1742126561846,1.06595,1876.3,1876.1,3.2078]
[1742126562047,1.4972,1876.2,1876.1,4.27381]
[1742126564046,1.4972,1876.2,1876.1,3.2078]
[1742126564249,1.4972,1876.2,1876.1,4.27381]
[1742126564942,2.56316,1876.2,1876.0,2.46185956]
[1742126565144,1.4972,1876.2,1876.1,1.06601]
[1742126565749,3.2078,1876.5,1876.4,1.06584]
[1742126565952,2.51433956,1876.6,1876.3,1.06586]
[1742126566151,2.51433956,1876.6,1876.4,2.46044]
[1742126566351,3.2078,1876.5,1876.4,2.46044]
[1742126566552,1.4406,1876.5,1876.4,2.46044]
[1742126566855,4.6484,1876.5,1876.4,2.46044]
[1742126567056,5.71419,1876.5,1876.4,1.3946]
[1742126567443,5.71419,1876.5,1876.0,3.21578956]
[1742126567444,1.06593,1876.3,1876.0,3.21578956]
[1742126567646,1.06593,1876.3,1876.2,1.3876]
[1742126567848,1.06593,1876.3,1876.2,2.45356]
[1742126568048,4.63369,1876.4,1876.3,1.0659]
[1742126568249,3.5678,1876.4,1876.3,1.0659]
[1742126568446,4.63364,1876.4,1876.3,1.0659]
[1742126568956,3.5678,1876.4,1876.3,1.0659]
[1742126569554,4.63364,1876.4,1876.3,1.0659]
[1742126569755,3.5678,1876.4,1876.3,1.0659]
[1742126570053,4.63364,1876.4,1876.2,2.45351]
[1742126570253,3.5678,1876.4,1876.3,1.0659]
[1742126571248,1.4361,1876.4,1876.3,1.0659]
[1742126571943,3.2078,1876.5,1876.4,1.06584]
[1742126572153,0.00798956,1876.6,1876.5,1.06579]
[1742126573651,0.00798956,1876.6,1876.5,5.12879]
[1742126574053,0.00798956,1876.6,1876.5,6.57609]
[1742126574356,5.5787,1876.8,1876.7,1.06567]
[1742126574752,0.47902088,1876.9,1876.8,1.06562]
[1742126574957,2.61012088,1876.9,1876.8,9.17352]
[1742126575155,2.1311,1876.9,1876.8,11.67352]
[1742126575354,0.9877,1876.9,1876.8,11.67352]
[1742126575860,0.9877,1876.9,1876.8,9.17352]
[1742126576055,0.9877,1876.9,1876.8,2.51292]
[1742126577055,2.05326,1876.9,1876.8,2.51292]
[1742126577262,2.4867,1876.9,1876.8,2.51292]
[1742126578355,1.499,1876.9,1876.8,2.51292]
[1742126580262,2.9623,1876.9,1876.8,2.51292]
[1742126580757,4.02789,1876.9,1876.8,1.06562]
[1742126580958,4.02789,1876.9,1876.7,5.4746]
[1742126581260,4.02789,1876.9,1876.4,7.32601]
[1742126581261,1.06569,1876.7,1876.4,7.32601]
[1742126581463,2.9623,1876.9,1876.5,2.47739]
[1742126581464,1.4633,1876.6,1876.5,2.47739]
[1742126582566,3.2078,1876.7,1876.6,1.0657]
[1742126582759,4.6535,1876.7,1876.4,1.06582]
[1742126582964,6.0386,1876.7,1876.4,1.06582]
[1742126583466,1.06577,1876.6,1876.4,1.06581]
[1742126583661,1.4457,1876.5,1876.4,1.06581]
[1742126583856,1.4457,1876.5,1876.3,2.55466]
[1742126584062,1.4143,1876.4,1876.3,1.06586]
[1742126584673,3.92584,1876.4,1876.3,1.06586]
[1742126585171,1.0659,1876.3,1876.2,1.06592]
[1742126585369,1.4457,1876.3,1876.2,1.06592]
[1742126585569,3.9768,1876.3,1876.1,4.061]
[1742126585765,1.06596,1876.2,1876.1,1.06601]
[1742126585965,1.4585,1876.2,1876.1,1.06601]
[1742126586670,2.52446,1876.2,1876.1,1.06601]
[1742126586872,1.4585,1876.2,1876.1,1.06601]
[1742126588068,4.6221,1876.4,1876.3,1.0659]
[1742126588266,3.2078,1876.4,1876.3,1.0659]
[1742126588481,2.52426,1876.6,1876.4,1.06581]
[1742126589065,2.56509,1876.5,1876.4,1.06581]
[1742126589270,1.06584,1876.4,1876.3,2.4224]
[1742126589473,1.4993,1876.4,1876.3,1.3565]
[1742126589662,1.4993,1876.4,1876.2,5.12694]
[1742126589868,1.351,1876.3,1876.2,5.12694]
[1742126590371,2.8503,1876.3,1876.2,5.12694]
[1742126590665,1.06596,1876.2,1876.1,1.06597]
[1742126590867,3.98486,1876.2,1876.1,1.06601]
[1742126591773,2.9189,1876.2,1876.1,1.06601]
[1742126592475,3.98486,1876.2,1876.1,1.06601]
[1742126592775,3.98488,1876.2,1876.0,2.43051956]
[1742126593066,1.4408,1876.1,1876.0,1.36448956]
[1742126593275,2.50681,1876.1,1876.0,0.00798956]
[1742126593571,1.06612,1876.0,1875.8,1.06615]
[1742126593772,1.06619,1875.8,1875.7,4.06]
[1742126593972,3.2078,1875.9,1875.7,1.06624]
[1742126594171,2.9501,1875.8,1875.7,1.06624]
[1742126594563,2.9501,1875.8,1875.6,15.0633232]
[1742126594766,2.55104,1875.7,1875.6,16.1296132]
[1742126594971,1.4848,1875.7,1875.6,16.1296132]
[1742126595172,2.55104,1875.7,1875.6,1.07427956]
[1742126595367,1.4848,1875.7,1875.6,1.07427956]
[1742126595567,2.55104,1875.7,1875.6,1.07427956]
[1742126595762,1.4848,1875.7,1875.6,1.07427956]
[1742126596374,1.4848,1875.7,1875.6,0.00798956]
[1742126596375,2.55104,1875.7,1875.6,0.00798956]
[1742126596565,3.97914,1875.7,1875.6,0.00798956]
[1742126596769,1.06637,1875.5,1875.4,1.06639]
[1742126596962,2.55113,1875.6,1875.5,1.06636]
[1742126597273,2.55113,1875.6,1875.3,4.7458]
[1742126597274,1.06633,1875.6,1875.4,1.06637]
[1742126597474,1.06633,1875.6,1875.5,1.06636]
[1742126597776,1.06633,1875.6,1875.3,4.7458]
[1742126597978,1.06633,1875.6,1875.5,1.06636]
[1742126598168,2.49438,1875.7,1875.4,1.53938956]
[1742126598468,1.06631,1875.6,1875.5,1.06634]
[1742126598667,2.49439,1875.7,1875.4,1.53938956]
[1742126598869,2.49439,1875.7,1875.6,1.0663]
[1742126599068,2.49439,1875.7,1875.5,1.06631]
[1742126599268,1.0663,1875.6,1875.5,1.06631]
[1742126600777,1.0663,1875.6,1875.4,2.60575956]
[1742126601176,1.0663,1875.6,1875.4,1.53938956]
[1742126601473,2.49438,1875.7,1875.5,2.55862]
[1742126601675,1.0663,1875.6,1875.5,2.55862]
[1742126602278,1.4281,1875.7,1875.5,1.06632]
[1742126602475,1.06633,1875.6,1875.5,1.06636]
[1742126602980,1.06633,1875.6,1875.4,1.50028956]
[1742126603179,1.06633,1875.6,1875.5,1.06636]
[1742126603379,1.06633,1875.6,1875.4,2.56665956]
[1742126603574,1.06633,1875.6,1875.5,1.06636]
[1742126603775,1.4281,1875.7,1875.5,1.06636]
[1742126604072,1.4281,1875.7,1875.6,4.2741]
[1742126604377,1.4281,1875.7,1875.6,1.0663]
[1742126604680,0.00798956,1875.9,1875.8,1.06619]
[1742126605379,1.07415956,1875.9,1875.7,2.54439]
[1742126605682,4.28191956,1875.9,1875.8,1.4782]
[1742126605882,3.21578956,1875.9,1875.8,2.54439]
[1742126606087,0.00798956,1875.9,1875.8,2.54439]
[1742126608984,0.00798956,1875.9,1875.8,6.60339]
[1742126609877,0.00798956,1875.9,1875.8,9.81119]
[1742126613490,0.00798956,1875.9,1875.8,6.60339]
[1742126614488,0.00798956,1875.9,1875.8,9.81119]
[1742126615183,0.00798956,1875.9,1875.8,12.31119]
[1742126615381,6.1122,1876.4,1875.8,12.31119]
[1742126615382,4.6861,1876.4,1876.3,1.0659]
[1742126615584,1.4783,1876.4,1876.3,1.0659]
[1742126615986,4.6339,1876.7,1876.6,1.06573]
[1742126616181,3.2078,1876.7,1876.6,1.06573]
[1742126617290,3.2078,1876.7,1876.6,2.47793]
[1742126617890,4.7251,1876.7,1876.6,1.06573]
[1742126618080,2.9396,1876.7,1876.6,1.06573]
[1742126618277,6.1474,1876.7,1876.5,0.00798956]
[1742126618482,2.9818,1876.6,1876.2,7.2638]
[1742126618790,1.5173,1876.5,1876.2,7.2638]
[1742126618985,1.5173,1876.5,1876.4,1.06584]
[1742126619383,1.5173,1876.5,1876.3,2.47806]
[1742126619690,1.5173,1876.5,1876.4,1.06584]
[1742126619885,1.5173,1876.5,1876.4,2.51584]
[1742126620879,0.00798956,1876.8,1876.7,1.06567]
[1742126621193,0.00798956,1876.8,1876.7,5.12067]
[1742126621384,0.00798956,1876.8,1876.7,6.57067]
[1742126621580,0.00798956,1876.8,1876.7,8.02287]
[1742126621785,0.00798956,1876.8,1876.7,6.57067]
[1742126622784,1.50648956,1876.8,1876.7,6.57067]
[1742126624182,0.00798956,1876.8,1876.7,6.57067]
[1742126625901,1.43858956,1876.8,1876.7,6.57067]
[1742126626191,0.00798956,1876.8,1876.7,6.57067]
[1742126626595,0.00798956,1876.8,1876.7,2.51567]
[1742126627088,1.48278956,1876.8,1876.7,2.51567]
[1742126627794,1.48278956,1876.8,1876.4,9.92539]
[1742126627998,1.4306,1876.7,1876.6,1.06568]
[1742126628999,1.48278956,1876.8,1876.7,1.06567]
[1742126629498,1.48278956,1876.8,1876.7,5.11867]
[1742126629999,0.00798956,1876.8,1876.7,6.59517]
[1742126630184,0.00798956,1876.8,1876.7,9.09517]
[1742126630797,0.00798956,1876.8,1876.7,6.59517]
[1742126637700,0.00798956,1876.8,1876.7,9.09517]
[1742126638094,0.00798956,1876.8,1876.7,6.59517]
[1742126640201,0.00798956,1876.8,1876.7,5.11867]
[1742126640398,1.53358956,1876.8,1876.7,5.11867]
[1742126640697,1.53358956,1876.8,1876.7,1.06567]
[1742126640904,2.59923956,1876.8,1876.6,8.32351]
[1742126641198,1.4474,1876.7,1876.6,4.27351]
[1742126641399,2.973,1876.7,1876.6,4.27351]
[1742126641899,2.973,1876.7,1876.6,5.70101]
[1742126642798,2.973,1876.7,1876.6,2.49321]
[1742126644005,2.973,1876.7,1876.6,3.94551]
[1742126644705,2.973,1876.7,1876.6,7.15331]
[1742126645006,1.4474,1876.7,1876.6,7.15331]
[1742126645203,0.00798956,1876.8,1876.6,6.0876]
[1742126645500,0.00798956,1876.8,1876.7,2.61407]
[1742126647311,9.56e-06,1876.8,1876.7,5.11407]
[1742126648606,9.56e-06,1876.8,1876.7,2.61407]
[1742126651210,9.56e-06,1876.8,1876.7,5.11407]
[1742126652007,1.506,1877.2,1877.1,1.06545]
[1742126652304,1.506,1877.2,1877.1,5.11345]
[1742126653100,1.4934,1877.3,1877.2,1.06539]
[1742126653311,1.50138956,1877.3,1877.2,2.56759]
[1742126653503,1.50138956,1877.3,1877.2,1.06539]
[1742126653704,1.50138956,1877.3,1876.9,2.66384]
[1742126653901,1.412,1877.2,1877.1,1.06542]
[1742126654310,2.47741,1877.2,1877.0,5.11249]
[1742126654515,1.4184,1877.1,1877.0,5.11249]
[1742126654817,2.8304,1877.1,1877.0,5.11249]
[1742126656315,2.8304,1877.1,1877.0,6.58489]
[1742126657311,2.8304,1877.1,1877.0,5.11249]
[1742126658818,1.412,1877.1,1877.0,5.11249]
[1742126659214,1.412,1877.1,1877.0,6.56809]
[1742126659416,1.50138956,1877.3,1877.2,1.06539]
[1742126659718,2.99118956,1877.3,1877.2,1.06539]
[1742126660913,2.99118956,1877.3,1877.2,2.52099]
[1742126661615,2.99118956,1877.3,1877.2,4.27319]
[1742126662623,1.50138956,1877.3,1877.2,4.27319]
[1742126662813,1.50138956,1877.3,1877.2,5.72029]
[1742126663213,0.00798956,1877.3,1877.2,5.72029]
[1742126663421,9.56e-06,1877.3,1877.2,8.22029]
[1742126663622,9.56e-06,1877.3,1877.2,5.88579]
[1742126664215,9.56e-06,1877.3,1877.2,8.38579]
[1742126664625,9.56e-06,1877.3,1877.2,5.88579]
[1742126665723,1.4212,1877.5,1877.2,5.88579]
[1742126665724,1.5029,1877.6,1877.3,2.66327]
[1742126665912,2.352,1877.7,1877.6,1.06516]
[1742126666424,1.5494,1877.9,1877.8,1.06505]
[1742126666618,1.5494,1877.9,1877.8,5.10905]
[1742126667016,1.5494,1877.9,1877.8,8.31685]
[1742126668829,1.5494,1877.9,1877.8,5.10905]
[1742126669130,4.4357,1877.9,1877.8,5.10905]
[1742126670525,0.00798956,1878.0,1877.9,1.06499]
[1742126670822,0.00798956,1878.0,1877.9,2.57129]
[1742126671124,1.54448956,1878.0,1877.9,2.57129]
[1742126672128,1.54448956,1878.0,1877.9,1.06499]
[1742126674522,1.54448956,1878.0,1877.9,2.49899]
[1742126676222,1.54448956,1878.0,1877.9,1.06499]
[1742126677327,1.54448956,1878.0,1877.9,2.56139]
[1742126681539,1.54448956,1878.0,1877.9,2.77009]
[1742126681740,1.54448956,1878.0,1877.9,1.06499]
[1742126682044,2.60942956,1878.0,1877.8,1.06502]
[1742126682537,1.4906,1877.9,1877.8,1.06502]
[1742126686133,0.00798956,1878.0,1877.9,1.06499]
[1742126686440,0.00798956,1878.0,1877.9,6.62549]
[1742126686739,1.49518956,1878.0,1877.8,3.2078]
[1742126686940,1.49518956,1878.0,1877.8,1.06503]
[1742126687141,1.49518956,1878.0,1877.9,1.06499]
[1742126687337,1.49518956,1878.0,1877.7,4.04698956]
[1742126687338,1.49518956,1878.0,1877.8,1.06501]
[1742126687844,2.56013956,1878.0,1877.7,5.11205956]
[1742126688040,1.49518956,1878.0,1877.7,4.04698956]
[1742126688248,1.4872,1877.9,1877.8,1.06505]
[1742126691346,0.00798956,1878.0,1877.9,1.06499]
[1742126691546,2.96498956,1878.0,1877.9,1.06499]
[1742126692245,2.96498956,1878.0,1877.9,2.61389]
[1742126693038,0.00798956,1878.0,1877.9,2.61389]
[1742126693237,9.56e-06,1878.0,1877.9,2.61389]
[1742126695144,1.3311,1878.1,1878.0,1.06494]
[1742126695449,1.3311,1878.1,1878.0,11.26394]
[1742126696647,1.33898956,1878.2,1878.1,1.06488]
[1742126696847,1.33898956,1878.2,1878.1,2.60128]
[1742126697045,0.00798956,1878.2,1878.1,2.60128]
[1742126699450,9.56e-06,1878.2,1878.1,5.10128]
[1742126699655,0.16990956,1878.3,1878.2,1.06482]
[1742126699844,0.16990956,1878.3,1878.2,5.80062]
[1742126699845,9.56e-06,1878.3,1878.2,5.80062]
[1742126700045,9.56e-06,1878.3,1878.2,9.81852]
[1742126700251,9.56e-06,1878.3,1878.2,7.31852]
[1742126700549,9.56e-06,1878.3,1878.2,9.81852]
[1742126700852,1.409,1878.8,1878.7,1.06454]
[1742126701044,1.409,1878.8,1878.7,5.09954]
[1742126701448,2.96981934,1878.9,1878.8,1.06448]
[1742126701648,2.96981934,1878.9,1878.8,2.49738]
[1742126702648,2.96981934,1878.9,1878.7,4.04298956]
[1742126702845,1.5149,1878.8,1878.7,6.54042956]
[1742126703042,1.5149,1878.8,1878.7,5.10752956]
[1742126703242,1.5149,1878.8,1878.7,0.00798956]
[1742126703643,4.7227,1878.8,1878.7,0.00798956]
[1742126704240,7.2227,1878.8,1878.3,3.2078]
[1742126704446,3.2078,1878.6,1878.3,1.06474]
[1742126704649,2.915,1878.5,1878.4,1.06471]
[1742126704851,3.2078,1878.6,1878.2,5.5074]
[1742126705053,0.00791934,1878.9,1878.2,5.5074]
[1742126705054,2.92291934,1878.9,1878.8,1.06448]
[1742126706748,2.92291934,1878.9,1878.7,1.07248956]
[1742126706956,1.4127,1878.8,1878.7,1.07248956]
[1742126707349,1.4127,1878.8,1878.7,2.52038956]
[1742126707649,2.9247,1878.8,1878.7,2.52038956]
[1742126709252,1.51021934,1878.9,1878.8,1.06448]
[1742126709458,1.51021934,1878.9,1878.8,2.51238]
[1742126709855,2.97941934,1878.9,1878.8,2.51238]
[1742126710557,2.97941934,1878.9,1878.7,0.00798956]
[1742126710761,1.5454,1878.8,1878.7,2.57312956]
[1742126710964,1.5454,1878.8,1878.7,6.60512956]
[1742126712552,1.5454,1878.8,1878.7,0.00798956]
[1742126712751,1.5454,1878.8,1878.7,1.07252956]
[1742126712959,1.5454,1878.8,1878.7,2.57312956]
[1742126714354,1.5454,1878.8,1878.7,1.07252956]
[1742126714554,1.5454,1878.8,1878.7,0.00798956]
[1742126715059,1.5454,1878.8,1878.7,1.07252956]
[1742126715257,1.5454,1878.8,1878.7,2.60402956]
[1742126715759,1.5454,1878.8,1878.7,1.07252956]
[1742126718258,1.5454,1878.8,1878.7,4.28032956]
[1742126718560,1.51021934,1878.9,1878.8,1.06448]
[1742126718861,3.04261934,1878.9,1878.8,6.55408]
[1742126719653,3.04261934,1878.9,1878.8,4.031]
[1742126720160,3.04261934,1878.9,1878.8,5.09548]
[1742126722456,4.10704934,1878.9,1878.8,4.031]
[1742126722955,3.04261934,1878.9,1878.8,5.09548]
[1742126724461,0.00791934,1878.9,1878.8,7.59548]
[1742126724766,9.34e-06,1878.9,1878.8,9.07758]
[1742126725664,9.34e-06,1878.9,1878.8,6.57758]
[1742126726361,9.34e-06,1878.9,1878.8,8.10448]
[1742126727367,9.34e-06,1878.9,1878.8,4.07348]
[1742126727661,9.34e-06,1878.9,1878.8,6.57558]
[1742126728060,9.34e-06,1878.9,1878.8,5.09248]
[1742126728263,1.55190934,1878.9,1878.8,5.09248]
[1742126728561,1.55190934,1878.9,1878.8,6.61618]
[1742126728968,1.55190934,1878.9,1878.8,5.5517]
[1742126729160,1.55190934,1878.9,1878.8,4.028]
[1742126729467,1.55190934,1878.9,1878.8,5.09248]
[1742126729662,1.55190934,1878.9,1878.8,4.028]
[1742126729862,1.55190934,1878.9,1878.8,6.53378]
[1742126730470,1.55190934,1878.9,1878.8,5.09248]
[1742126730858,1.55190934,1878.9,1878.8,6.53378]
[1742126731260,2.61633934,1878.9,1878.8,6.53378]
[1742126731467,1.55190934,1878.9,1878.8,5.09248]
[1742126732263,1.06448,1878.8,1878.7,1.56648956]
[1742126732469,2.61636934,1878.9,1878.8,1.06448]
[1742126732662,2.61636934,1878.9,1878.7,0.00798956]
[1742126732663,1.06448,1878.8,1878.7,0.00798956]
[1742126732965,1.06469,1878.5,1878.3,1.06472]
[1742126733173,3.88971,1878.4,1878.3,1.06472]
[1742126733468,2.825,1878.4,1878.3,1.06472]
[1742126733966,3.2078,1878.6,1878.3,1.06477]
[1742126734166,1.4138,1878.7,1878.6,1.0646]
[1742126735265,9.34e-06,1878.9,1878.8,1.06448]
[1742126735771,2.57553934,1878.9,1878.4,6.68877]
[1742126735961,2.57553934,1878.9,1878.7,1.06451]
[1742126736163,1.51110934,1878.9,1878.8,1.06448]
[1742126736367,2.57553934,1878.9,1878.7,1.0645]
[1742126736561,1.51110934,1878.9,1878.8,1.5302]
[1742126736761,1.51110934,1878.9,1878.8,2.59468]
[1742126737167,1.51110934,1878.9,1878.8,1.5302]
[1742126737365,9.34e-06,1878.9,1878.8,2.59468]
[1742126737566,9.34e-06,1878.9,1878.8,5.57418]
[1742126738871,9.34e-06,1878.9,1878.8,8.07418]
[1742126740566,9.34e-06,1878.9,1878.8,5.57418]
[1742126742776,9.34e-06,1878.9,1878.8,5.97954763]
[1742126742977,9.34e-06,1878.9,1878.8,8.47954763]
[1742126743172,9.34e-06,1878.9,1878.8,5.97954763]
[1742126744269,9.34e-06,1878.9,1878.8,8.47954763]
[1742126744465,9.34e-06,1878.9,1878.8,5.97954763]
[1742126744873,9.34e-06,1878.9,1878.8,8.47954763]
[1742126745579,9.34e-06,1878.9,1878.8,5.97954763]
[1742126746679,9.34e-06,1878.9,1878.8,10.00454763]
[1742126747980,3.24,1879.4,1879.0,2.66089]
[1742126748175,3.2078,1880.2,1879.7,1.06397]
[1742126748378,1.06365,1880.3,1879.7,7.2318]
[1742126748681,2.9072,1880.1,1880.0,1.0638]
[1742126749478,2.9072,1880.1,1880.0,5.0878]
[1742126749678,0.00798956,1880.2,1880.1,1.06375]
[1742126749880,0.00798956,1880.2,1880.1,2.57615]
[1742126750183,23.97212255,1880.4,1880.1,2.57615]
[1742126750184,23.96413299,1880.4,1880.3,1.06363]
[1742126750484,23.96413299,1880.4,1880.3,8.29543]
[1742126750781,23.96413299,1880.4,1880.3,8.95823583]
[1742126750983,22.89656299,1880.4,1880.3,11.45823583]
[1742126751177,12.94439344,1880.4,1880.3,11.45823583]
[1742126751384,0.00798956,1880.5,1880.4,1.06358]
[1742126751683,1.95922,1880.4,1880.3,7.89460583]
[1742126751982,1.95922,1880.4,1880.3,10.79543]
[1742126752176,1.56042,1880.4,1880.3,10.79543]
[1742126752381,0.00798956,1880.5,1880.4,1.06358]
[1742126752685,9.56e-06,1880.5,1880.4,1.06358]
[1742126752885,9.56e-06,1880.5,1880.4,3.56358]
[1742126753381,3.2078,1882.1,1881.1,2.65795]
[1742126753571,3.2078,1882.1,1880.5,0.532]
[1742126753572,1.32880433,1881.6,1881.5,4.27076]
[1742126753776,0.2874,1881.7,1881.6,1.0629]
[1742126753981,1.61620433,1881.7,1881.6,1.0629]
[1742126754177,1.61620433,1881.7,1881.6,5.0839]
[1742126754579,1.61620433,1881.7,1881.6,4.021]
[1742126754979,1.61620433,1881.7,1881.5,0.00798956]
[1742126755181,1.32880433,1881.6,1881.5,1.07094956]
[1742126756180,1.32880433,1881.6,1881.5,0.00798956]
[1742126756580,1.32880433,1881.6,1881.5,1.07094956]
[1742126758084,1.32880433,1881.6,1881.5,0.00798956]
[1742126758286,4.53660433,1881.6,1881.2,4.02]
[1742126758590,7.56890433,1881.5,1881.2,4.02]
[1742126758778,6.2401,1881.5,1881.1,29.502]
[1742126758973,1.32880433,1881.4,1881.1,29.502]
[1742126759180,1.5198,1881.3,1881.2,1.06312]
[1742126759379,2.84860433,1881.3,1881.2,2.48572]
[1742126759677,2.84860433,1881.3,1881.2,1.06312]
[1742126759877,2.84860433,1881.3,1881.1,30.57312956]
[1742126760078,1.32880433,1881.2,1881.1,30.57312956]
[1742126760293,1.32880433,1881.2,1881.1,29.50998956]
[1742126760294,2.84860433,1881.2,1881.1,29.50998956]
[1742126760588,2.84860433,1881.2,1881.1,1.07116956]
[1742126760784,2.84860433,1881.2,1881.1,0.00798956]
[1742126760979,2.84860433,1881.2,1880.9,7.2268]
[1742126761190,2.39199433,1881.1,1880.9,4.019]
[1742126761374,1.5198,1881.0,1880.9,4.019]